[Event "Titled Tuesday Blitz December 27 Early 2022"]
[White "Bok, Benjamin"]
[Black "Mischuk, Dmitry"]
[WhiteFideId "1017063"]
[BlackFideId "14118734"]
[WhiteElo "2607"]
[BlackElo "2298"]
[Result "1-0"]
[Round "03"]
[TimeControl "180+2"]
[Date "2022.12.27"]
[WhiteClock "0:00:45"]
[BlackClock "0:00:42"]

1. d4 {[%clk 0:03:00]}  d5 {[%clk 0:02:59]} 2. c4 {[%clk 0:03:01]}  e6 {[%clk 0:02:59]} 3. Nc3 {[%clk 0:03:00]}  c5 {[%clk 0:02:59]} 4. cxd5 {[%clk 0:03:01]}  exd5 {[%clk 0:03:00]} 5. Nf3 {[%clk 0:03:01]}  Nc6 {[%clk 0:03:00]} 6. g3 {[%clk 0:03:01]}  Nf6 {[%clk 0:03:00]} 7. Bg2 {[%clk 0:03:00]}  Be7 {[%clk 0:03:01]} 8. O-O {[%clk 0:03:00]}  O-O {[%clk 0:03:01]} 9. dxc5 {[%clk 0:02:55]}  Bxc5 {[%clk 0:03:00]} 10. b3 {[%clk 0:02:56]}  Bg4 {[%clk 0:02:40]} 11. Bb2 {[%clk 0:02:55]}  a6 {[%clk 0:02:34]} 12. h3 {[%clk 0:02:54]}  Bf5 {[%clk 0:02:24]} 13. e3 {[%clk 0:02:46]}  Ba7 {[%clk 0:02:21]} 14. Ne2 {[%clk 0:02:44]}  Be4 {[%clk 0:02:20]} 15. Nf4 {[%clk 0:02:38]}  Rc8 {[%clk 0:02:16]} 16. Rc1 {[%clk 0:02:37]}  Re8 {[%clk 0:02:16]} 17. Qd2 {[%clk 0:02:28]}  Qe7 {[%clk 0:02:12]} 18. Rfd1 {[%clk 0:02:27]}  Red8 {[%clk 0:02:07]} 19. Nd4 {[%clk 0:01:47]}  Bxd4 {[%clk 0:02:03]} 20. Bxd4 {[%clk 0:01:46]}  Bxg2 {[%clk 0:02:03]} 21. Bxf6 {[%clk 0:01:44]}  Qxf6 {[%clk 0:01:59]} 22. Kxg2 {[%clk 0:01:44]}  d4 {[%clk 0:01:37]} 23. exd4 {[%clk 0:01:44]}  g5 {[%clk 0:01:38]} 24. Nh5 {[%clk 0:01:25]}  Qg6 {[%clk 0:01:37]} 25. g4 {[%clk 0:01:23]}  h6 {[%clk 0:01:27]} 26. d5 {[%clk 0:01:21]}  Ne5 {[%clk 0:01:23]} 27. Rxc8 {[%clk 0:01:19]}  Qe4+ {[%clk 0:01:13]} 28. Kh2 {[%clk 0:00:55]}  Nf3+ {[%clk 0:01:02]} 29. Kg3 {[%clk 0:00:53]}  Qe5+ {[%clk 0:00:43]} 30. Kxf3 {[%clk 0:00:52]}  Rxc8 {[%clk 0:00:44]} 31. Qd4 {[%clk 0:00:48]}  Rc3+ {[%clk 0:00:43]} 32. Kg2 {[%clk 0:00:48]}  Rg3+ {[%clk 0:00:43]} 33. fxg3 {[%clk 0:00:46]}  Qe2+ {[%clk 0:00:42]} 34. Kg1 {[%clk 0:00:45]} 1-0


[Site "https://www.chess.com"]

[Event "Titled Tuesday Blitz December 27 Early 2022"]
[White "Boros, Denes"]
[Black "Hsu, Li Yang"]
[WhiteFideId "722340"]
[BlackFideId "5800080"]
[WhiteElo "2406"]
[BlackElo "2427"]
[Result "0-1"]
[Round "03"]
[TimeControl "180+2"]
[Date "2022.12.27"]
[WhiteClock "0:00:38"]
[BlackClock "0:00:11"]

1. d4 {[%clk 0:03:00]}  Nf6 {[%clk 0:02:58]} 2. Nc3 {[%clk 0:03:01]}  d5 {[%clk 0:02:56]} 3. Nf3 {[%clk 0:03:02]}  g6 {[%clk 0:02:55]} 4. g3 {[%clk 0:03:01]}  Bg7 {[%clk 0:02:54]} 5. Bg2 {[%clk 0:03:02]}  O-O {[%clk 0:02:54]} 6. O-O {[%clk 0:03:02]}  c6 {[%clk 0:02:50]} 7. Re1 {[%clk 0:03:02]}  Bf5 {[%clk 0:02:46]} 8. h3 {[%clk 0:03:02]}  Ne4 {[%clk 0:02:42]} 9. Nh4 {[%clk 0:02:53]}  Nxc3 {[%clk 0:02:40]} 10. bxc3 {[%clk 0:02:54]}  Be6 {[%clk 0:02:40]} 11. a4 {[%clk 0:02:50]}  Nd7 {[%clk 0:02:38]} 12. a5 {[%clk 0:02:50]}  b6 {[%clk 0:02:26]} 13. c4 {[%clk 0:02:45]}  bxa5 {[%clk 0:02:21]} 14. Bd2 {[%clk 0:02:32]}  Bxd4 {[%clk 0:02:12]} 15. Bxa5 {[%clk 0:02:32]}  Bb6 {[%clk 0:02:11]} 16. Bc3 {[%clk 0:02:26]}  Nf6 {[%clk 0:01:55]} 17. Qc1 {[%clk 0:02:24]}  d4 {[%clk 0:01:50]} 18. Bb2 {[%clk 0:02:18]}  Bxc4 {[%clk 0:01:48]} 19. Qh6 {[%clk 0:02:14]}  Rc8 {[%clk 0:01:40]} 20. Nf3 {[%clk 0:02:11]}  Bd5 {[%clk 0:01:12]} 21. Ng5 {[%clk 0:02:06]}  Bxg2 {[%clk 0:01:08]} 22. Kxg2 {[%clk 0:02:07]}  e5 {[%clk 0:00:57]} 23. e4 {[%clk 0:01:47]}  Re8 {[%clk 0:00:56]} 24. Ba3 {[%clk 0:01:31]}  c5 {[%clk 0:00:54]} 25. f4 {[%clk 0:01:27]}  Qd6 {[%clk 0:00:51]} 26. Rf1 {[%clk 0:01:22]}  Qf8 {[%clk 0:00:47]} 27. Qh4 {[%clk 0:01:22]}  Qg7 {[%clk 0:00:41]} 28. f5 {[%clk 0:01:20]}  Bd8 {[%clk 0:00:34]} 29. g4 {[%clk 0:01:07]}  Nd7 {[%clk 0:00:26]} 30. Bc1 {[%clk 0:01:03]}  h6 {[%clk 0:00:24]} 31. f6 {[%clk 0:01:04]}  Bxf6 {[%clk 0:00:23]} 32. Rxf6 {[%clk 0:01:03]}  Nxf6 {[%clk 0:00:20]} 33. Nf3 {[%clk 0:00:55]}  g5 {[%clk 0:00:20]} 34. Qe1 {[%clk 0:00:56]}  Qg6 {[%clk 0:00:19]} 35. Ra6 {[%clk 0:00:55]}  Re6 {[%clk 0:00:16]} 36. Rxa7 {[%clk 0:00:53]}  Qxe4 {[%clk 0:00:16]} 37. Qf2 {[%clk 0:00:54]}  Qd5 {[%clk 0:00:15]} 38. Kh2 {[%clk 0:00:54]}  Rce8 {[%clk 0:00:13]} 39. c4 {[%clk 0:00:48]}  dxc3 {[%clk 0:00:12]} 40. Be3 {[%clk 0:00:44]}  e4 {[%clk 0:00:12]} 41. Ne1 {[%clk 0:00:42]}  Qe5+ {[%clk 0:00:12]} 42. Kg2 {[%clk 0:00:43]}  R8e7 {[%clk 0:00:12]} 43. Ra8+ {[%clk 0:00:40]}  Re8 {[%clk 0:00:12]} 44. Ra7 {[%clk 0:00:40]}  R6e7 {[%clk 0:00:13]} 45. Ra6 {[%clk 0:00:41]}  Nd5 {[%clk 0:00:12]} 46. Rxh6 {[%clk 0:00:39]}  Nf4+ {[%clk 0:00:12]} 47. Kg1 {[%clk 0:00:39]}  Re6 {[%clk 0:00:11]} 48. Rxe6 {[%clk 0:00:38]}  Nxh3+ {[%clk 0:00:11]} 0-1


[Site "https://www.chess.com"]

[Event "Titled Tuesday Blitz December 27 Early 2022"]
[White "Cardoso Cardoso, Jose Gabriel"]
[Black "Kvaloy, Aksel Bu"]
[WhiteFideId "4430492"]
[BlackFideId "1528815"]
[WhiteElo "2492"]
[BlackElo "2321"]
[Result "1-0"]
[Round "03"]
[TimeControl "180+2"]
[Date "2022.12.27"]
[WhiteClock "0:00:32"]
[BlackClock "0:00:54"]

1. d4 {[%clk 0:02:55]}  Nf6 {[%clk 0:02:56]} 2. Nc3 {[%clk 0:02:54]}  g6 {[%clk 0:02:53]} 3. h4 {[%clk 0:02:50]}  Bg7 {[%clk 0:02:52]} 4. e4 {[%clk 0:02:49]}  d6 {[%clk 0:02:51]} 5. Be3 {[%clk 0:02:46]}  h6 {[%clk 0:02:51]} 6. h5 {[%clk 0:02:43]}  g5 {[%clk 0:02:32]} 7. f3 {[%clk 0:02:39]}  a6 {[%clk 0:02:29]} 8. Qd2 {[%clk 0:02:38]}  b5 {[%clk 0:02:28]} 9. a4 {[%clk 0:02:36]}  b4 {[%clk 0:02:27]} 10. Nd1 {[%clk 0:02:36]}  a5 {[%clk 0:02:26]} 11. c3 {[%clk 0:02:36]}  bxc3 {[%clk 0:02:25]} 12. bxc3 {[%clk 0:02:34]}  Nbd7 {[%clk 0:02:24]} 13. Bb5 {[%clk 0:02:18]}  Bb7 {[%clk 0:02:16]} 14. Ne2 {[%clk 0:02:16]}  c6 {[%clk 0:02:16]} 15. Bd3 {[%clk 0:02:15]}  c5 {[%clk 0:02:08]} 16. Rb1 {[%clk 0:02:13]}  Qc7 {[%clk 0:02:07]} 17. O-O {[%clk 0:02:09]}  e6 {[%clk 0:02:02]} 18. Nf2 {[%clk 0:02:04]}  Nxh5 {[%clk 0:01:54]} 19. dxc5 {[%clk 0:01:38]}  Nxc5 {[%clk 0:01:50]} 20. Bb5+ {[%clk 0:01:13]}  Bc6 {[%clk 0:01:50]} 21. Rfd1 {[%clk 0:01:12]}  Bxb5 {[%clk 0:01:34]} 22. axb5 {[%clk 0:01:11]}  Be5 {[%clk 0:01:31]} 23. b6 {[%clk 0:01:08]}  Qb7 {[%clk 0:01:28]} 24. Ng4 {[%clk 0:01:04]}  Nd7 {[%clk 0:01:25]} 25. Nxe5 {[%clk 0:01:02]}  dxe5 {[%clk 0:01:25]} 26. c4 {[%clk 0:00:55]}  Nhf6 {[%clk 0:01:24]} 27. c5 {[%clk 0:00:47]}  O-O {[%clk 0:01:21]} 28. Bxg5 {[%clk 0:00:47]}  hxg5 {[%clk 0:01:18]} 29. Qxg5+ {[%clk 0:00:47]}  Kh8 {[%clk 0:01:18]} 30. Kf2 {[%clk 0:00:47]}  Nh7 {[%clk 0:01:18]} 31. Rh1 {[%clk 0:00:46]}  Nxc5 {[%clk 0:00:53]} 32. Rxh7+ {[%clk 0:00:33]}  Kxh7 {[%clk 0:00:54]} 33. Rh1# {[%clk 0:00:32]} 1-0


[Site "https://www.chess.com"]

[Event "Titled Tuesday Blitz December 27 Early 2022"]
[White "Christiansen, Johan-Sebastian"]
[Black "Lenderman, Aleksandr"]
[WhiteFideId "1512668"]
[BlackFideId "2021285"]
[WhiteElo "2579"]
[BlackElo "2572"]
[Result "0-1"]
[Round "03"]
[TimeControl "180+2"]
[Date "2022.12.27"]
[WhiteClock "0:00:01"]
[BlackClock "0:00:34"]

1. e4 {[%clk 0:03:00]}  e6 {[%clk 0:02:59]} 2. d4 {[%clk 0:02:56]}  d5 {[%clk 0:02:59]} 3. e5 {[%clk 0:02:56]}  c5 {[%clk 0:02:58]} 4. c3 {[%clk 0:02:56]}  Nc6 {[%clk 0:02:56]} 5. Nf3 {[%clk 0:02:56]}  Nge7 {[%clk 0:02:55]} 6. Be2 {[%clk 0:02:50]}  Nf5 {[%clk 0:02:49]} 7. h4 {[%clk 0:02:37]}  cxd4 {[%clk 0:02:48]} 8. g4 {[%clk 0:02:36]}  Nh6 {[%clk 0:02:43]} 9. Bxh6 {[%clk 0:02:35]}  gxh6 {[%clk 0:02:44]} 10. cxd4 {[%clk 0:02:34]}  Qb6 {[%clk 0:02:42]} 11. Qd2 {[%clk 0:02:35]}  Bd7 {[%clk 0:02:38]} 12. Nc3 {[%clk 0:02:34]}  Rc8 {[%clk 0:02:38]} 13. g5 {[%clk 0:02:27]}  hxg5 {[%clk 0:02:36]} 14. hxg5 {[%clk 0:02:28]}  Bb4 {[%clk 0:02:29]} 15. O-O {[%clk 0:02:06]}  h6 {[%clk 0:02:26]} 16. gxh6 {[%clk 0:01:22]}  Bf8 {[%clk 0:02:25]} 17. Nb5 {[%clk 0:01:06]}  Nb4 {[%clk 0:01:41]} 18. Nd6+ {[%clk 0:00:22]}  Bxd6 {[%clk 0:01:41]} 19. exd6 {[%clk 0:00:23]}  Qxd6 {[%clk 0:01:37]} 20. Rac1 {[%clk 0:00:22]}  Nc6 {[%clk 0:01:36]} 21. Bb5 {[%clk 0:00:14]}  Qf8 {[%clk 0:01:34]} 22. Bxc6 {[%clk 0:00:13]}  Bxc6 {[%clk 0:01:33]} 23. Ne5 {[%clk 0:00:12]}  Rxh6 {[%clk 0:01:31]} 24. f4 {[%clk 0:00:08]}  f6 {[%clk 0:01:25]} 25. Nf3 {[%clk 0:00:03]}  Kd7 {[%clk 0:01:16]} 26. Kf2 {[%clk 0:00:03]}  Qh8 {[%clk 0:01:14]} 27. Rg1 {[%clk 0:00:03]}  Rh3 {[%clk 0:01:10]} 28. Rg2 {[%clk 0:00:04]}  Rg8 {[%clk 0:01:04]} 29. Rcg1 {[%clk 0:00:03]}  Rxg2+ {[%clk 0:01:04]} 30. Rxg2 {[%clk 0:00:04]}  Qh5 {[%clk 0:01:04]} 31. Qe3 {[%clk 0:00:02]}  Qh7 {[%clk 0:00:59]} 32. Qd2 {[%clk 0:00:01]}  Qe4 {[%clk 0:00:55]} 33. Qe3 {[%clk 0:00:02]}  Bb5 {[%clk 0:00:47]} 34. Qxe4 {[%clk 0:00:01]}  dxe4 {[%clk 0:00:47]} 35. Ne1 {[%clk 0:00:02]}  e3+ {[%clk 0:00:45]} 36. Kg1 {[%clk 0:00:02]}  Bc6 {[%clk 0:00:45]} 37. Rg7+ {[%clk 0:00:01]}  Kd6 {[%clk 0:00:45]} 38. Kf1 {[%clk 0:00:02]}  Rh2 {[%clk 0:00:42]} 39. Nd3 {[%clk 0:00:01]}  Bf3 {[%clk 0:00:34]} 0-1


[Site "https://www.chess.com"]

[Event "Titled Tuesday Blitz December 27 Early 2022"]
[White "Ciuffoletti, Paolo"]
[Black "Ambartsumova, Karina"]
[WhiteFideId "807630"]
[BlackFideId "4166299"]
[WhiteElo "2106"]
[BlackElo "2393"]
[Result "0-1"]
[Round "03"]
[TimeControl "180+2"]
[Date "2022.12.27"]
[WhiteClock "0:00:19"]
[BlackClock "0:00:34"]

1. e4 {[%clk 0:03:00]}  c5 {[%clk 0:02:57]} 2. d4 {[%clk 0:03:00]}  cxd4 {[%clk 0:02:57]} 3. c3 {[%clk 0:03:00]}  d3 {[%clk 0:02:57]} 4. Bxd3 {[%clk 0:02:59]}  Nc6 {[%clk 0:02:58]} 5. c4 {[%clk 0:02:59]}  Nf6 {[%clk 0:02:58]} 6. Nc3 {[%clk 0:02:59]}  e6 {[%clk 0:02:59]} 7. Nf3 {[%clk 0:02:59]}  d6 {[%clk 0:02:54]} 8. O-O {[%clk 0:02:58]}  Be7 {[%clk 0:02:55]} 9. Qe2 {[%clk 0:02:58]}  O-O {[%clk 0:02:55]} 10. Rd1 {[%clk 0:02:57]}  Qc7 {[%clk 0:02:56]} 11. h3 {[%clk 0:02:52]}  a6 {[%clk 0:02:52]} 12. Bf4 {[%clk 0:02:49]}  Ne5 {[%clk 0:02:51]} 13. Rac1 {[%clk 0:02:33]}  b6 {[%clk 0:02:50]} 14. b3 {[%clk 0:02:27]}  Bb7 {[%clk 0:02:50]} 15. Bb1 {[%clk 0:02:22]}  Rac8 {[%clk 0:02:48]} 16. Nd4 {[%clk 0:02:16]}  Qb8 {[%clk 0:02:46]} 17. Bh2 {[%clk 0:02:14]}  Bd8 {[%clk 0:02:45]} 18. f4 {[%clk 0:02:12]}  Nc6 {[%clk 0:02:44]} 19. e5 {[%clk 0:02:03]}  dxe5 {[%clk 0:02:35]} 20. fxe5 {[%clk 0:02:01]}  Ne8 {[%clk 0:02:35]} 21. Ne4 {[%clk 0:01:48]}  Nxe5 {[%clk 0:02:08]} 22. Qh5 {[%clk 0:01:38]}  Bc7 {[%clk 0:01:16]} 23. Bxe5 {[%clk 0:00:46]}  Bxe5 {[%clk 0:01:12]} 24. Ng5 {[%clk 0:00:39]}  Nf6 {[%clk 0:00:47]} 25. Bxh7+ {[%clk 0:00:36]}  Kh8 {[%clk 0:00:47]} 26. Nxf7+ {[%clk 0:00:28]}  Rxf7 {[%clk 0:00:45]} 27. Qxf7 {[%clk 0:00:28]}  Bxd4+ {[%clk 0:00:35]} 28. Rxd4 {[%clk 0:00:27]}  Qg3 {[%clk 0:00:36]} 29. Qg6 {[%clk 0:00:22]}  Qe3+ {[%clk 0:00:34]} 30. Kh2 {[%clk 0:00:19]}  Qxd4 {[%clk 0:00:34]} 0-1


[Site "https://www.chess.com"]

[Event "Titled Tuesday Blitz December 27 Early 2022"]
[White "Delorme, Alban"]
[Black "Bilan, Danila"]
[WhiteFideId "623636"]
[BlackFideId "24161918"]
[WhiteElo "2298"]
[BlackElo "2303"]
[Result "0-1"]
[Round "03"]
[TimeControl "180+2"]
[Date "2022.12.27"]
[WhiteClock "0:01:07"]
[BlackClock "0:00:16"]

1. e4 {[%clk 0:03:00]}  c6 {[%clk 0:02:57]} 2. d4 {[%clk 0:03:00]}  d5 {[%clk 0:02:57]} 3. exd5 {[%clk 0:03:01]}  cxd5 {[%clk 0:02:57]} 4. Nf3 {[%clk 0:03:02]}  Nf6 {[%clk 0:02:51]} 5. Bb5+ {[%clk 0:02:58]}  Nc6 {[%clk 0:02:48]} 6. Ne5 {[%clk 0:02:58]}  Bd7 {[%clk 0:02:36]} 7. Nxd7 {[%clk 0:02:56]}  Qxd7 {[%clk 0:02:37]} 8. O-O {[%clk 0:02:56]}  e6 {[%clk 0:02:37]} 9. Bg5 {[%clk 0:02:53]}  Ne4 {[%clk 0:02:35]} 10. Bf4 {[%clk 0:02:47]}  Bd6 {[%clk 0:02:32]} 11. Bxd6 {[%clk 0:02:46]}  Qxd6 {[%clk 0:02:33]} 12. Nd2 {[%clk 0:02:45]}  O-O {[%clk 0:02:01]} 13. Nxe4 {[%clk 0:02:27]}  dxe4 {[%clk 0:02:02]} 14. c3 {[%clk 0:02:26]}  a6 {[%clk 0:01:40]} 15. Ba4 {[%clk 0:02:15]}  b5 {[%clk 0:01:38]} 16. Bc2 {[%clk 0:02:14]}  f5 {[%clk 0:01:19]} 17. f3 {[%clk 0:02:14]}  exf3 {[%clk 0:01:08]} 18. Qxf3 {[%clk 0:02:15]}  Na5 {[%clk 0:00:56]} 19. Rae1 {[%clk 0:02:14]}  Rae8 {[%clk 0:00:53]} 20. Bd3 {[%clk 0:01:54]}  g6 {[%clk 0:00:47]} 21. Re5 {[%clk 0:01:47]}  Nc6 {[%clk 0:00:45]} 22. Rc5 {[%clk 0:01:47]}  Nxd4 {[%clk 0:00:34]} 23. cxd4 {[%clk 0:01:29]}  Qxd4+ {[%clk 0:00:34]} 24. Qf2 {[%clk 0:01:30]}  Qxd3 {[%clk 0:00:33]} 25. Rc6 {[%clk 0:01:30]}  a5 {[%clk 0:00:26]} 26. Rfc1 {[%clk 0:01:26]}  Rf7 {[%clk 0:00:20]} 27. Qf4 {[%clk 0:01:13]}  Rd7 {[%clk 0:00:17]} 28. Qd6 {[%clk 0:01:07]}  Rxd6 {[%clk 0:00:16]} 0-1


[Site "https://www.chess.com"]

[Event "Titled Tuesday Blitz December 27 Early 2022"]
[White "Demidov, Mikhail"]
[Black "Kowalczyk, Pawel"]
[WhiteFideId "4197143"]
[BlackFideId "1130641"]
[WhiteElo "2583"]
[BlackElo "2332"]
[Result "1-0"]
[Round "03"]
[TimeControl "180+2"]
[Date "2022.12.27"]
[WhiteClock "0:01:18"]
[BlackClock "0:01:19"]

1. Nf3 {[%clk 0:03:00]}  c6 {[%clk 0:02:58]} 2. c4 {[%clk 0:02:59]}  d5 {[%clk 0:02:59]} 3. cxd5 {[%clk 0:02:59]}  cxd5 {[%clk 0:03:00]} 4. d4 {[%clk 0:03:00]}  Nc6 {[%clk 0:03:00]} 5. Nc3 {[%clk 0:03:00]}  Nf6 {[%clk 0:02:56]} 6. Bf4 {[%clk 0:03:00]}  a6 {[%clk 0:02:55]} 7. Rc1 {[%clk 0:02:59]}  g6 {[%clk 0:02:56]} 8. e3 {[%clk 0:02:57]}  Bg7 {[%clk 0:02:56]} 9. h3 {[%clk 0:02:56]}  O-O {[%clk 0:02:55]} 10. Be2 {[%clk 0:02:57]}  e6 {[%clk 0:02:50]} 11. O-O {[%clk 0:02:57]}  Bd7 {[%clk 0:02:49]} 12. Na4 {[%clk 0:02:53]}  Ne4 {[%clk 0:02:47]} 13. Nc5 {[%clk 0:02:52]}  Nxc5 {[%clk 0:02:47]} 14. Rxc5 {[%clk 0:02:51]}  Re8 {[%clk 0:02:46]} 15. Qd2 {[%clk 0:02:50]}  Bf8 {[%clk 0:02:46]} 16. Rcc1 {[%clk 0:02:49]}  Rc8 {[%clk 0:02:46]} 17. Qd3 {[%clk 0:02:34]}  Qa5 {[%clk 0:02:44]} 18. Qb1 {[%clk 0:02:32]}  Qb6 {[%clk 0:02:33]} 19. Rc3 {[%clk 0:02:28]}  Na5 {[%clk 0:02:25]} 20. Rfc1 {[%clk 0:02:25]}  Rxc3 {[%clk 0:02:23]} 21. Rxc3 {[%clk 0:02:26]}  Rc8 {[%clk 0:02:23]} 22. Qc2 {[%clk 0:02:13]}  Rxc3 {[%clk 0:02:20]} 23. Qxc3 {[%clk 0:02:13]}  Bb4 {[%clk 0:02:19]} 24. Bc7 {[%clk 0:01:45]}  Qc6 {[%clk 0:02:04]} 25. Qxb4 {[%clk 0:01:43]}  Qxc7 {[%clk 0:02:03]} 26. g4 {[%clk 0:01:33]}  Nc6 {[%clk 0:02:00]} 27. Qc5 {[%clk 0:01:30]}  b6 {[%clk 0:01:54]} 28. Qc3 {[%clk 0:01:25]}  a5 {[%clk 0:01:42]} 29. Ne5 {[%clk 0:01:18]}  Qd6 {[%clk 0:01:19]} 30. Nxd7 {[%clk 0:01:18]} 1-0


[Site "https://www.chess.com"]

[Event "Titled Tuesday Blitz December 27 Early 2022"]
[White "Dimitrov, Atanas"]
[Black "Chigaev, Maksim"]
[WhiteFideId "2901315"]
[BlackFideId "4108116"]
[WhiteElo "2269"]
[BlackElo "2628"]
[Result "0-1"]
[Round "03"]
[TimeControl "180+2"]
[Date "2022.12.27"]
[WhiteClock "0:00:05"]
[BlackClock "0:00:09"]

1. Nf3 {[%clk 0:03:00]}  Nf6 {[%clk 0:02:56]} 2. c4 {[%clk 0:02:58]}  g6 {[%clk 0:02:56]} 3. g3 {[%clk 0:02:58]}  Bg7 {[%clk 0:02:57]} 4. Bg2 {[%clk 0:02:58]}  O-O {[%clk 0:02:58]} 5. O-O {[%clk 0:02:59]}  c5 {[%clk 0:02:58]} 6. Nc3 {[%clk 0:02:59]}  Nc6 {[%clk 0:02:59]} 7. b3 {[%clk 0:02:58]}  e5 {[%clk 0:02:53]} 8. Bb2 {[%clk 0:02:57]}  d6 {[%clk 0:02:53]} 9. d3 {[%clk 0:02:54]}  h6 {[%clk 0:02:54]} 10. Nd2 {[%clk 0:02:52]}  Be6 {[%clk 0:02:54]} 11. e3 {[%clk 0:02:47]}  Qd7 {[%clk 0:02:54]} 12. Nde4 {[%clk 0:02:44]}  Ne8 {[%clk 0:02:53]} 13. Ne2 {[%clk 0:02:37]}  f5 {[%clk 0:02:51]} 14. N4c3 {[%clk 0:02:37]}  Bf7 {[%clk 0:02:41]} 15. Nd5 {[%clk 0:02:37]}  Kh7 {[%clk 0:02:38]} 16. Qd2 {[%clk 0:02:34]}  Nc7 {[%clk 0:02:35]} 17. Nec3 {[%clk 0:02:31]}  Ne6 {[%clk 0:02:32]} 18. Rfe1 {[%clk 0:02:23]}  Rab8 {[%clk 0:02:31]} 19. Ne2 {[%clk 0:02:19]}  b5 {[%clk 0:02:28]} 20. cxb5 {[%clk 0:02:16]}  Rxb5 {[%clk 0:02:29]} 21. Rac1 {[%clk 0:02:14]}  Ne7 {[%clk 0:02:02]} 22. Nxe7 {[%clk 0:02:10]}  Qxe7 {[%clk 0:02:02]} 23. Nc3 {[%clk 0:02:10]}  Rbb8 {[%clk 0:02:03]} 24. Nd5 {[%clk 0:02:10]}  Qd7 {[%clk 0:02:01]} 25. f4 {[%clk 0:02:04]}  Rbc8 {[%clk 0:01:41]} 26. Bc3 {[%clk 0:01:57]}  Nd8 {[%clk 0:01:32]} 27. Qb2 {[%clk 0:01:46]}  Nc6 {[%clk 0:01:31]} 28. a3 {[%clk 0:01:40]}  Ne7 {[%clk 0:01:12]} 29. Nxe7 {[%clk 0:01:33]}  Qxe7 {[%clk 0:01:12]} 30. b4 {[%clk 0:01:26]}  c4 {[%clk 0:01:11]} 31. e4 {[%clk 0:01:05]}  cxd3 {[%clk 0:01:00]} 32. exf5 {[%clk 0:01:04]}  gxf5 {[%clk 0:01:00]} 33. fxe5 {[%clk 0:01:03]}  dxe5 {[%clk 0:01:01]} 34. Rcd1 {[%clk 0:00:58]}  Bg6 {[%clk 0:00:19]} 35. Bxe5 {[%clk 0:00:51]}  Rfe8 {[%clk 0:00:04]} 36. Bxg7 {[%clk 0:00:08]}  Qxe1+ {[%clk 0:00:05]} 37. Rxe1 {[%clk 0:00:08]}  Rxe1+ {[%clk 0:00:05]} 38. Kf2 {[%clk 0:00:09]}  Re2+ {[%clk 0:00:05]} 39. Qxe2 {[%clk 0:00:09]}  dxe2 {[%clk 0:00:06]} 40. Bd4 {[%clk 0:00:09]}  Rc2 {[%clk 0:00:06]} 41. Bf3 {[%clk 0:00:07]}  a6 {[%clk 0:00:07]} 42. Ke1 {[%clk 0:00:04]}  f4 {[%clk 0:00:07]} 43. Bxe2 {[%clk 0:00:03]}  fxg3 {[%clk 0:00:07]} 44. hxg3 {[%clk 0:00:04]}  Ra2 {[%clk 0:00:07]} 45. Bxa6 {[%clk 0:00:04]}  Rxa3 {[%clk 0:00:07]} 46. b5 {[%clk 0:00:05]}  Bd3 {[%clk 0:00:06]} 47. Kd2 {[%clk 0:00:03]}  Rb3 {[%clk 0:00:07]} 48. g4 {[%clk 0:00:03]}  Bxb5 {[%clk 0:00:07]} 49. Bxb5 {[%clk 0:00:03]}  Rxb5 {[%clk 0:00:07]} 50. Ke3 {[%clk 0:00:04]}  Kg6 {[%clk 0:00:08]} 51. Kf4 {[%clk 0:00:04]}  Rb4 {[%clk 0:00:08]} 52. Ke4 {[%clk 0:00:04]}  Kg5 {[%clk 0:00:08]} 53. Ke5 {[%clk 0:00:04]}  Kxg4 {[%clk 0:00:08]} 54. Be3 {[%clk 0:00:05]}  h5 {[%clk 0:00:09]} 0-1


[Site "https://www.chess.com"]

[Event "Titled Tuesday Blitz December 27 Early 2022"]
[White "Ezat, Mohamed"]
[Black "Antonio, Jorge Carlos"]
[WhiteFideId "10600906"]
[BlackFideId "113190"]
[WhiteElo "2402"]
[BlackElo "2277"]
[Result "1-0"]
[Round "03"]
[TimeControl "180+2"]
[Date "2022.12.27"]
[WhiteClock "0:01:01"]
[BlackClock "0:01:35"]

1. d4 {[%clk 0:02:54]}  d5 {[%clk 0:02:59]} 2. c4 {[%clk 0:02:51]}  c6 {[%clk 0:02:59]} 3. Nc3 {[%clk 0:02:51]}  Nf6 {[%clk 0:02:59]} 4. cxd5 {[%clk 0:02:51]}  cxd5 {[%clk 0:02:58]} 5. Bf4 {[%clk 0:02:52]}  e6 {[%clk 0:02:57]} 6. e3 {[%clk 0:02:52]}  Bd6 {[%clk 0:02:57]} 7. Bxd6 {[%clk 0:02:52]}  Qxd6 {[%clk 0:02:56]} 8. f4 {[%clk 0:02:52]}  Bd7 {[%clk 0:02:54]} 9. Nf3 {[%clk 0:02:52]}  a6 {[%clk 0:02:54]} 10. Bd3 {[%clk 0:02:51]}  Qb6 {[%clk 0:02:51]} 11. Qe2 {[%clk 0:02:49]}  Nc6 {[%clk 0:02:47]} 12. O-O {[%clk 0:02:48]}  Na7 {[%clk 0:02:46]} 13. Ne5 {[%clk 0:02:46]}  Bb5 {[%clk 0:02:45]} 14. Nxb5 {[%clk 0:02:28]}  Nxb5 {[%clk 0:02:42]} 15. f5 {[%clk 0:02:23]}  Nd6 {[%clk 0:02:33]} 16. fxe6 {[%clk 0:02:22]}  fxe6 {[%clk 0:02:32]} 17. Kh1 {[%clk 0:01:48]}  O-O {[%clk 0:02:31]} 18. Rf3 {[%clk 0:01:31]}  Nfe4 {[%clk 0:02:29]} 19. Nd7 {[%clk 0:01:26]}  Qc7 {[%clk 0:01:58]} 20. Nxf8 {[%clk 0:01:14]}  Rxf8 {[%clk 0:01:57]} 21. Rxf8+ {[%clk 0:01:13]}  Kxf8 {[%clk 0:01:57]} 22. Rf1+ {[%clk 0:01:11]}  Kg8 {[%clk 0:01:57]} 23. Qg4 {[%clk 0:01:04]}  Qe7 {[%clk 0:01:53]} 24. Qf4 {[%clk 0:01:04]}  b5 {[%clk 0:01:37]} 25. Bxe4 {[%clk 0:01:02]}  Nxe4 {[%clk 0:01:35]} 26. Qb8+ {[%clk 0:01:01]} 1-0


[Site "https://www.chess.com"]

[Event "Titled Tuesday Blitz December 27 Early 2022"]
[White "Fernandez Garcia, Gumersindo"]
[Black "Almeida Junior, Alvaro Alves de"]
[WhiteFideId "24516740"]
[BlackFideId "2149974"]
[WhiteElo "2160"]
[BlackElo "2062"]
[Result "1-0"]
[Round "03"]
[TimeControl "180+2"]
[Date "2022.12.27"]
[WhiteClock "0:01:05"]
[BlackClock "0:02:12"]

1. e4 {[%clk 0:02:58]}  c5 {[%clk 0:02:59]} 2. c3 {[%clk 0:02:53]}  Nf6 {[%clk 0:02:58]} 3. e5 {[%clk 0:02:50]}  Nd5 {[%clk 0:02:58]} 4. d4 {[%clk 0:02:49]}  cxd4 {[%clk 0:02:59]} 5. cxd4 {[%clk 0:02:50]}  Nc6 {[%clk 0:02:58]} 6. Nf3 {[%clk 0:02:50]}  d6 {[%clk 0:02:58]} 7. Bc4 {[%clk 0:02:45]}  e6 {[%clk 0:02:57]} 8. O-O {[%clk 0:02:41]}  Be7 {[%clk 0:02:57]} 9. Nbd2 {[%clk 0:02:25]}  O-O {[%clk 0:02:53]} 10. Ne4 {[%clk 0:02:21]}  dxe5 {[%clk 0:02:52]} 11. dxe5 {[%clk 0:02:20]}  Qc7 {[%clk 0:02:46]} 12. Bxd5 {[%clk 0:01:48]}  exd5 {[%clk 0:02:47]} 13. Qxd5 {[%clk 0:01:49]}  Be6 {[%clk 0:02:47]} 14. Qb5 {[%clk 0:01:48]}  a6 {[%clk 0:02:44]} 15. Qe2 {[%clk 0:01:43]}  Nxe5 {[%clk 0:02:43]} 16. Bf4 {[%clk 0:01:34]}  Nxf3+ {[%clk 0:02:41]} 17. Qxf3 {[%clk 0:01:35]}  Qb6 {[%clk 0:02:36]} 18. Be5 {[%clk 0:01:31]}  f6 {[%clk 0:02:33]} 19. Bc3 {[%clk 0:01:30]}  Bb4 {[%clk 0:02:22]} 20. Rfe1 {[%clk 0:01:19]}  Bd5 {[%clk 0:02:15]} 21. Nxf6+ {[%clk 0:01:14]}  gxf6 {[%clk 0:02:11]} 22. Qxd5+ {[%clk 0:01:14]}  Kh8 {[%clk 0:02:12]} 23. Re6 {[%clk 0:01:05]} 1-0


[Site "https://www.chess.com"]